bitfinex/quotes_ETHUSD_20241024
["timestamp","ask_amount","ask_price","bid_price","bid_amount"]
[1729789077779,5.59826242,2519.8,2519.5,0.8216]
[1729789077981,2.18949866,2519.7,2519.5,0.8216]
[1729789078190,5.59826242,2519.8,2519.5,0.8216]
[1729789078365,5.59826242,2519.8,2519.4,6.96918]
[1729789078565,5.59826242,2519.8,2519.4,6.96912]
[1729789078780,1.62967242,2519.7,2519.4,3.96912]
[1729789079006,1.62967242,2519.8,2519.4,3.96912]
[1729789079499,1.62967242,2519.8,2519.4,7.93824]
[1729789079858,1.62967242,2519.8,2519.5,3.96903]
[1729789080518,3.96843,2519.9,2519.5,3.96903]
[1729789080813,5.59810242,2519.9,2519.5,3.96903]
[1729789082282,1.62967242,2519.8,2519.4,3.96908]
[1729789082487,4.73222,2520.1,2519.5,0.7972]
[1729789082698,1.62967242,2519.8,2519.5,4.76613]
[1729789083164,5.59830242,2519.8,2519.5,0.7972]
[1729789083358,1.62967242,2519.8,2519.4,7.93838]
[1729789083673,1.62967242,2519.8,2519.4,3.96919]
[1729789083874,5.59828242,2519.8,2519.4,3.96919]
[1729789084498,5.59828242,2519.8,2519.4,7.93832]
[1729789084664,1.62967242,2519.8,2519.4,7.93832]
[1729789085223,1.62967242,2519.8,2519.4,3.96913]
[1729789085425,5.59826242,2519.8,2519.3,7.76653]
[1729789085834,5.59872242,2519.5,2519.3,0.7972]
[1729789086011,1.62967242,2519.5,2519.3,0.7972]
[1729789086350,5.59858242,2519.6,2519.3,0.7972]
[1729789086794,3.96891,2519.6,2519.3,0.7972]
[1729789087228,3.96881,2519.7,2519.3,4.76652]
[1729789087747,1.62967242,2519.4,2519.1,0.7869]
[1729789088028,5.59926242,2519.2,2518.7,4.743]
[1729789088239,4.73427,2519.3,2518.7,0.7728]
[1729789088240,1.62967242,2519.1,2518.7,0.7728]
[1729789088389,5.59940242,2519.1,2518.7,0.7728]
[1729789088593,5.59940242,2519.1,2518.7,4.74309]
[1729789088817,5.59940242,2519.1,2518.7,0.7728]
[1729789089026,5.59940242,2519.1,2518.7,4.74303]
[1729789090140,1.62967242,2519.0,2518.7,4.74303]
[1729789090300,5.59940242,2519.1,2518.7,4.74303]
[1729789091234,5.59919242,2519.2,2518.7,4.74302]
[1729789092029,1.62967242,2519.2,2518.7,4.74302]
[1729789092228,1.62967242,2519.2,2518.9,3.96998]
[1729789092637,1.62967242,2519.2,2518.7,4.74302]
[1729789092838,4.73417,2519.3,2518.8,3.96999]
[1729789092839,6.36384242,2519.3,2518.8,3.96999]
[1729789093037,6.36384242,2519.3,2518.9,3.96996]
[1729789094262,3.96907,2519.5,2519.0,4.73492]
[1729789094434,1.62967242,2519.4,2519.0,4.73492]
[1729789094764,1.62967242,2519.3,2519.0,4.73492]
[1729789094949,1.62967242,2519.3,2519.0,0.7652]
[1729789095529,5.59906242,2519.3,2519.0,0.7652]
[1729789099943,6.43141242,2519.2,2518.8,3.97012]
[1729789100774,5.59973242,2518.9,2518.7,0.814]
[1729789101280,3.97006,2518.9,2518.7,0.814]
[1729789101478,3.97006,2518.9,2518.4,8.73287]
[1729789101649,5.59951242,2519.0,2518.5,3.97059]
[1729789101864,3.96998,2518.9,2518.5,3.97059]
[1729789102652,3.97015,2518.8,2518.4,4.76234]
[1729789103664,5.59967242,2518.9,2518.4,4.76234]
[1729789104074,5.59967242,2518.9,2518.4,0.7916]
[1729789104240,5.59967242,2518.9,2518.5,3.97061]
[1729789104445,5.59952242,2519.0,2518.5,7.94107]
[1729789104640,5.59952242,2519.0,2518.5,3.97046]
[1729789105078,3.96985,2519.0,2518.5,9.57065242]
[1729789105585,3.96985,2519.0,2518.5,5.60013242]
[1729789105777,5.59952242,2519.0,2518.5,3.97046]
[1729789106678,6.29708851,2519.0,2518.5,3.97046]
[1729789107060,3.97004,2518.9,2518.5,3.97046]
[1729789108081,5.59971242,2518.9,2518.5,3.97061]
[1729789108447,9.56982242,2518.9,2518.5,3.97061]
[1729789108647,9.56982242,2518.9,2518.4,0.7916]
[1729789108848,10.67327127,2518.9,2518.4,4.76234]
[1729789109444,3.97015,2518.8,2518.4,4.76234]
[1729789109773,6.38262242,2518.8,2518.4,0.7916]
[1729789110069,2.41247242,2518.8,2518.4,0.7916]
[1729789110278,5.59997242,2518.7,2518.3,6.97089]
[1729789110581,9.57038242,2518.7,2518.3,6.97089]
[1729789110792,3.97051,2518.6,2518.2,4.79662]
[1729789110946,5.60018242,2518.6,2518.2,4.79662]
[1729789111169,3.97051,2518.6,2518.2,4.79662]
[1729789111369,5.60018242,2518.6,2518.2,4.79662]
[1729789111603,0.7576,2518.5,2518.0,0.824]
[1729789111771,5.60091242,2518.1,2517.9,0.0419974]
[1729789111965,1.62967242,2518.1,2517.9,0.0419974]
[1729789112467,5.60083242,2518.2,2517.9,0.0419974]
[1729789114002,9.57144242,2518.4,2517.9,4.0134374]
[1729789114503,3.97094,2518.3,2517.9,0.0419974]
[1729789114669,4.70094706,2518.3,2517.9,0.0419974]
[1729789114869,6.33061948,2518.3,2517.9,0.0419974]
[1729789115476,5.60051242,2518.4,2517.9,0.0419974]
[1729789115771,3.97084,2518.4,2518.0,3.97138]
[1729789116101,5.60021242,2518.6,2518.1,4.75336]
[1729789116403,5.60037242,2518.5,2518.1,0.7822]
[1729789117482,5.60045242,2518.4,2518.1,0.7822]
[1729789117687,1.62967242,2518.3,2518.1,0.7822]
[1729789118212,1.62967242,2518.3,2517.9,4.8082374]
[1729789118213,5.60060242,2518.3,2517.9,4.8082374]
[1729789118367,5.60060242,2518.3,2517.9,0.8366974]
[1729789118713,5.60098242,2518.1,2517.9,0.0419974]
[1729789119010,5.60107242,2518.0,2517.9,0.0419974]
[1729789119193,3.9714,2518.0,2517.9,0.0419974]
[1729789119877,5.60107242,2518.0,2517.9,0.0419974]
[1729789120407,3.9714,2518.0,2517.9,0.0419974]
[1729789121310,4.848638,2518.0,2517.9,0.0419974]
[1729789128979,0.877238,2518.0,2517.9,0.0419974]
[1729789130008,4.848638,2518.0,2517.9,0.0419974]
[1729789133415,5.650438,2518.0,2517.9,0.0419974]
[1729789136322,8.650438,2518.0,2517.9,0.0419974]
[1729789142401,10.28740055,2518.0,2517.9,0.0419974]
[1729789154130,8.650438,2518.0,2517.9,0.0419974]
[1729789154324,10.28740055,2518.0,2517.9,0.0419974]
[1729789162951,7.848638,2518.0,2517.9,0.0419974]
[1729789163162,8.60836255,2518.0,2517.9,0.0419974]
[1729789164553,5.60836255,2518.0,2517.9,0.0419974]
[1729789168644,6.37636255,2518.0,2517.9,0.0419974]
[1729789168968,9.37636255,2518.0,2517.9,0.0419974]
[1729789178979,8.60836255,2518.0,2517.9,0.0419974]
[1729789179147,9.95162281,2518.0,2517.9,0.0419974]
[1729789191445,3.9714,2518.0,2517.9,0.8333974]
[1729789191982,5.60836255,2518.0,2517.9,0.8333974]
[1729789200313,3.9714,2518.0,2517.9,0.8333974]
[1729789200498,5.60836255,2518.0,2517.9,0.8333974]
[1729789201427,6.56632281,2518.0,2517.9,0.0419974]
[1729789205102,4.92936026,2518.0,2517.9,0.0419974]
[1729789205306,6.56632281,2518.0,2517.9,0.0419974]
[1729789207426,7.36122281,2518.0,2517.9,0.0419974]
[1729789210422,5.60836255,2518.0,2517.9,0.8112974]
[1729789211440,3.9714,2518.0,2517.9,0.8112974]
[1729789211649,5.60836255,2518.0,2517.9,0.8112974]
[1729789215935,5.60836255,2518.0,2517.9,0.0419974]
[1729789219354,3.9714,2518.0,2517.9,0.0419974]
[1729789219564,3.9714,2518.0,2517.9,0.8390974]
[1729789219759,5.60836255,2518.0,2517.9,0.8390974]
[1729789223039,3.97124,2518.1,2517.9,0.8390974]
[1729789223238,3.9714,2518.0,2517.9,0.8390974]
[1729789223447,5.60836255,2518.0,2517.9,0.8390974]
[1729789227069,3.97124,2518.1,2517.9,0.8390974]
[1729789227070,5.60820255,2518.1,2517.9,0.8390974]
[1729789227389,3.97124,2518.1,2517.9,0.8390974]
[1729789228189,3.97111,2518.2,2517.9,0.8390974]
[1729789228696,3.97126,2518.1,2517.9,0.8390974]
[1729789228895,5.60836255,2518.0,2517.9,0.8390974]
[1729789234515,5.60836255,2518.0,2517.9,0.0419974]
[1729789238688,6.64728381,2518.0,2517.9,0.0419974]
[1729789241812,7.45918381,2518.0,2517.9,0.0419974]
[1729789242190,6.64728381,2518.0,2517.9,0.0419974]
[1729789243981,5.01032126,2518.0,2517.9,0.0419974]
[1729789244212,5.60836255,2518.0,2517.9,0.0419974]
[1729789264324,6.43456255,2518.0,2517.9,0.0419974]
[1729789266125,5.60836255,2518.0,2517.9,0.0419974]
[1729789267512,6.43126255,2518.0,2517.9,0.0419974]
[1729789271633,5.60836255,2518.0,2517.9,0.0419974]
[1729789271931,6.56732381,2518.0,2517.9,0.0419974]
[1729789273330,7.33402381,2518.0,2517.9,0.0419974]
[1729789276026,11.99098636,2518.0,2517.9,7.4e-06]
[1729789276227,12.54098636,2518.0,2517.9,7.4e-06]
[1729789276436,12.95375946,2518.0,2517.9,7.4e-06]
[1729789276763,3.9733,2516.8,2516.6,0.7602]
[1729789276977,5.61041255,2516.7,2516.6,0.7602]
[1729789277562,5.61026255,2516.8,2516.6,0.7602]
[1729789277816,3.97277,2517.2,2516.6,0.7602]
[1729789277817,3.97315,2516.9,2516.6,0.7602]
[1729789278061,3.97317,2516.9,2516.6,0.7602]
[1729789278269,3.97287,2517.1,2516.7,3.97341]
[1729789278558,3.97287,2517.1,2516.8,0.8238]
[1729789278863,3.97305,2517.0,2516.8,0.8238]
[1729789279166,1.63696255,2517.0,2516.8,0.8238]
[1729789279466,3.97314,2516.9,2516.8,0.8238]
[1729789279665,3.973,2517.0,2516.8,0.8238]
[1729789280305,5.60980255,2517.1,2516.8,0.8238]
[1729789280477,3.97284,2517.1,2516.8,0.8238]
[1729789280677,7.94576,2517.1,2516.8,0.8238]
[1729789281075,3.97284,2517.1,2516.8,0.8238]
[1729789281280,5.60980255,2517.1,2516.8,0.8238]
[1729789281900,9.58276255,2517.1,2516.8,0.8238]
[1729789282201,5.60980255,2517.1,2516.8,0.8238]
[1729789282414,3.97284,2517.1,2516.8,0.8238]
[1729789282940,3.97243,2517.4,2517.1,0.7654]
[1729789283271,5.60915255,2517.5,2517.2,0.8312]
[1729789283691,3.97236,2517.4,2517.2,0.8312]
[1729789284098,5.60917255,2517.5,2517.2,0.8312]
[1729789284296,3.97206,2517.6,2517.2,0.8312]
[1729789284504,3.97206,2517.6,2517.3,0.7886]
[1729789285627,7.9437,2517.8,2517.4,0.8263]
[1729789285784,5.60847255,2518.0,2517.5,0.8263]
[1729789285985,7.94241,2518.2,2517.8,0.8263]
[1729789286207,5.60815255,2518.2,2517.8,0.8263]
[1729789286384,3.97137,2518.1,2517.8,0.8263]
[1729789287189,1.63696255,2518.1,2517.8,0.8263]
[1729789287391,5.60815255,2518.2,2517.8,0.8263]
[1729789287585,5.60823255,2518.1,2517.8,0.8263]
[1729789287785,1.63696255,2518.1,2517.8,0.8263]
[1729789288012,5.60823255,2518.1,2517.8,0.8263]
[1729789288724,3.97127,2518.1,2517.8,0.8263]
[1729789289231,5.60823255,2518.1,2517.8,0.8263]
[1729789290490,1.63696255,2518.0,2517.8,0.8263]
[1729789290691,3.97127,2518.1,2517.8,0.8263]
[1729789292633,3.9714,2518.0,2517.8,0.8263]
[1729789293488,5.60836255,2518.0,2517.8,0.8263]
[1729789294127,1.63696255,2517.9,2517.2,3.83205802]
[1729789294292,5.60852255,2517.9,2517.3,2.91207706]
[1729789294625,3.97174,2517.8,2517.4,0.07943893]
[1729789294828,3.97157,2517.9,2517.5,0.7671]
[1729789295937,3.97142,2518.0,2517.5,6.37625255]
[1729789296131,3.97156,2517.9,2517.6,0.7671]
[1729789296425,3.97141,2518.0,2517.6,0.7671]
[1729789296725,3.97136,2518.1,2517.7,0.7671]
[1729789296968,3.97141,2518.0,2517.7,0.7671]
[1729789297796,1.63696255,2518.0,2517.7,0.7671]
[1729789297997,3.97147,2518.0,2517.7,0.7671]
[1729789298908,7.94302,2518.0,2517.7,0.7671]
[1729789299122,3.97161,2517.9,2517.7,0.7671]
[1729789299317,1.63696255,2518.0,2517.7,0.7671]
[1729789299523,5.60860255,2517.9,2517.7,0.7671]
[1729789299724,3.97164,2517.9,2517.7,0.7671]
[1729789300360,3.97172,2517.8,2517.7,0.7671]
[1729789302445,3.97172,2517.8,2517.4,0.7535]
[1729789302646,3.97172,2517.8,2517.4,4.72583]
[1729789302955,3.97189,2517.7,2517.4,0.7535]
[1729789303250,3.97172,2517.8,2517.4,4.72584]
[1729789303968,5.60868255,2517.8,2517.4,0.7535]
[1729789304151,3.97194,2517.7,2517.4,0.7535]
[1729789305751,1.63696255,2517.7,2517.4,0.7535]
[1729789305913,3.97205,2517.6,2517.4,0.7535]
[1729789306314,7.94401,2517.7,2517.4,0.7535]
[1729789306561,7.94397,2517.7,2517.4,0.7535]
[1729789306972,3.97198,2517.7,2517.4,0.7535]
[1729789307178,3.97197,2517.7,2517.4,0.7535]
[1729789307474,7.94396,2517.7,2517.4,0.7535]
[1729789307671,3.97197,2517.7,2517.4,0.7535]
[1729789307827,7.94397,2517.7,2517.4,0.7535]
[1729789308253,3.97204,2517.6,2517.4,0.7535]
[1729789309971,3.9719,2517.7,2517.4,0.7535]
[1729789310334,3.97204,2517.6,2517.4,0.7535]
[1729789311573,7.94421,2517.6,2517.4,0.7535]
[1729789311732,3.97204,2517.6,2517.4,0.7535]
[1729789312236,3.97219,2517.5,2517.4,0.7535]
[1729789312834,3.97219,2517.5,2517.2,0.7694]
[1729789313029,1.63696255,2517.7,2517.2,0.7694]
[1729789313365,1.63696255,2517.4,2517.0,0.7725]
[1729789313580,0.8026,2517.5,2517.0,0.7725]
[1729789313581,3.97273,2517.2,2517.0,0.7725]
[1729789314067,3.97254,2517.3,2517.0,0.7725]
[1729789317075,3.9727,2517.2,2517.0,0.7725]
[1729789317445,3.97254,2517.3,2517.0,0.7725]
[1729789319055,3.97269,2517.2,2517.0,0.7725]
[1729789319379,4.93090926,2517.2,2516.7,5.61038255]
[1729789319542,5.60985255,2517.1,2516.8,0.7789]
[1729789319753,3.97314,2516.9,2516.6,0.7789]
[1729789319959,3.9733,2516.8,2516.6,0.7789]
[1729789320156,5.61014255,2516.9,2516.6,0.7789]
[1729789320383,0.95832125,2516.8,2516.6,0.7789]
[1729789320892,1.63696255,2516.7,2516.6,0.7789]
[1729789321187,6.5686438,2516.8,2516.4,4.75282]
[1729789321388,5.61032255,2516.8,2516.4,0.7789]
[1729789321549,5.61032255,2516.8,2516.4,4.75282]
[1729789321889,5.61007255,2517.0,2516.5,5.61069255]
[1729789322181,3.97311,2517.0,2516.6,6.43138255]
[1729789322360,1.63696255,2517.1,2516.7,3.97342]
[1729789322561,5.60982255,2517.1,2516.7,3.97342]
[1729789323081,3.97302,2517.0,2516.6,0.8209]
[1729789323287,3.97315,2516.9,2516.6,0.8209]
[1729789323751,7.94639,2516.9,2516.6,0.8209]
[1729789323950,5.61028255,2516.8,2516.6,0.8209]
[1729789324183,7.9464,2516.9,2516.6,0.8209]
[1729789324367,9.58336255,2516.9,2516.6,0.8209]
[1729789324573,3.97333,2516.8,2516.6,0.8209]
[1729789325150,3.97333,2516.8,2516.4,0.7683]
[1729789325352,3.97333,2516.8,2516.4,2.40526255]
[1729789325670,3.97347,2516.7,2516.4,0.7683]
[1729789326213,3.97434,2516.2,2516.0,0.8253]
[1729789326490,2.41036255,2516.5,2516.0,0.8253]
[1729789326491,5.61106255,2516.3,2516.0,0.8253]
[1729789327245,1.63696255,2516.4,2516.0,0.8253]
[1729789327576,3.97416,2516.3,2516.0,0.8253]
[1729789327749,5.61112255,2516.3,2516.0,0.8253]
[1729789328162,5.56112255,2516.3,2516.0,0.8253]
[1729789329073,4.61241426,2516.4,2516.0,0.8253]
[1729789329074,10.22332681,2516.4,2516.0,0.8253]
[1729789329769,3.97414,2516.3,2516.0,0.8253]
[1729789329980,1.63696255,2516.2,2516.0,0.8253]
[1729789330168,9.58529255,2516.3,2516.0,0.8253]
[1729789330408,5.61110255,2516.3,2516.0,0.8253]
[1729789330921,1.63696255,2516.2,2515.8,0.8213]
[1729789331070,5.61120255,2516.2,2515.8,4.79616]
[1729789331272,3.97424,2516.2,2515.8,4.79616]
[1729789331505,3.97424,2516.2,2515.8,6.43312255]
[1729789333068,5.61120255,2516.2,2515.8,4.79616]
[1729789333375,3.97424,2516.2,2515.8,6.43312255]
[1729789334102,5.61120255,2516.2,2515.8,4.74615]
[1729789334303,3.97424,2516.2,2515.8,4.74615]
[1729789335213,9.58506255,2516.4,2515.9,3.9747]
[1729789335700,3.97416,2516.3,2515.9,3.9747]
[1729789336916,3.97416,2516.3,2515.9,0.8058]
[1729789337711,3.97425,2516.2,2515.9,0.8058]
[1729789338010,3.97443,2516.1,2515.9,0.8058]
[1729789339481,5.61139255,2516.1,2515.9,0.8058]
[1729789339675,3.97443,2516.1,2515.9,0.8058]
[1729789340358,5.61126255,2516.2,2515.9,0.8058]
[1729789340703,3.97442,2516.1,2515.9,0.8058]
[1729789341015,5.61126255,2516.2,2515.9,0.8058]
[1729789341580,3.9743,2516.2,2515.9,0.8058]
[1729789342212,5.61120255,2516.2,2515.9,0.8058]
[1729789345719,3.97444,2516.1,2515.9,0.8058]
[1729789345926,0.7926,2515.8,2515.2,0.7605]
[1729789346218,5.61231255,2515.5,2515.2,0.7605]
[1729789347523,5.61231255,2515.5,2515.0,4.74619]
[1729789348018,6.43791255,2515.5,2514.7,3.97661]
[1729789348387,6.43791255,2515.5,2514.6,4.73885]
[1729789348585,6.43791255,2515.5,2514.6,0.7621]
[1729789348827,6.43791255,2515.5,2514.6,4.73884]
[1729789349035,6.43791255,2515.5,2514.6,4.73879]
[1729789349330,6.43791255,2515.5,2514.6,0.7621]
[1729789350512,11.13337272,2515.5,2514.6,0.7621]
[1729789350718,11.13337272,2515.5,2514.3,3.97711]
[1729789351012,11.13337272,2515.5,2514.3,0.7915]
[1729789351013,3.97686,2514.6,2514.3,0.7915]
[1729789351216,3.97703,2514.5,2514.3,0.7915]
[1729789351391,3.97703,2514.5,2514.0,0.7915]
[1729789351598,3.97749,2514.2,2514.0,0.7915]
[1729789351802,7.95498,2514.2,2513.5,0.7556]
[1729789352018,3.97749,2514.2,2513.5,0.7556]
[1729789352188,3.97749,2514.2,2513.6,0.0795541]
[1729789353237,3.9772,2514.4,2513.6,0.0795541]
[1729789353395,3.97726,2514.3,2513.7,0.7553]
[1729789353731,3.97696,2514.5,2513.7,0.7553]
[1729789354030,3.97671,2514.7,2514.1,0.8146]
[1729789354240,3.97678,2514.6,2514.1,0.8146]
[1729789354389,3.97671,2514.7,2514.1,0.8146]
[1729789354591,0.479781,2514.6,2514.1,0.8146]
[1729789354789,4.456571,2514.6,2514.1,0.8146]
[1729789355219,3.97705,2514.5,2514.1,0.8146]
[1729789355429,4.456571,2514.6,2514.1,4.79213]
[1729789355616,4.456571,2514.6,2514.1,0.8146]
[1729789355820,3.97694,2514.5,2514.1,0.8146]
[1729789356135,3.97646,2514.8,2514.2,4.05683334]
[1729789356290,3.97646,2514.8,2514.3,3.97723]
[1729789356698,3.97685,2514.6,2514.1,0.8146]
[1729789357100,3.97708,2514.5,2514.1,0.8146]
[1729789357305,0.397708,2514.4,2514.1,0.8146]
[1729789357631,3.9771,2514.4,2514.1,0.8146]
[1729789358314,4.74157,2514.5,2514.1,0.8146]
[1729789358631,0.7645,2514.5,2513.9,0.7551]
[1729789358833,3.97716,2514.4,2513.9,4.73297]
[1729789359005,4.74152,2514.5,2513.9,4.73297]
[1729789359192,0.474152,2514.4,2513.9,4.73297]
[1729789359640,0.474152,2514.4,2513.9,4.68297]
[1729789360318,0.474152,2514.4,2514.0,7.95533]
[1729789360680,0.7576,2514.7,2514.2,3.97728]
[1729789360796,0.7505,2514.9,2514.2,3.97729]
[1729789360997,3.97662,2514.7,2514.1,7.9551]
[1729789361294,3.97647,2514.8,2514.3,3.97716]
[1729789361630,3.97669,2514.7,2514.2,3.97738]
[1729789362196,5.18004927,2514.8,2514.2,3.97728]
[1729789362497,3.97663,2514.7,2514.2,3.97728]
[1729789362699,3.97663,2514.7,2514.2,4.75278]
[1729789363632,3.97663,2514.7,2514.3,3.97723]
[1729789366608,7.95333,2514.7,2514.2,4.75288]
[1729789367013,3.97663,2514.7,2514.3,3.97724]
[1729789367227,3.97663,2514.7,2514.2,4.75288]
[1729789368596,3.97679,2514.6,2514.2,4.75288]
[1729789368797,3.97679,2514.6,2514.2,0.7755]
[1729789369820,3.97663,2514.7,2514.2,4.75281]
[1729789370212,3.97685,2514.6,2514.2,4.75281]
[1729789372127,3.97664,2514.7,2514.3,3.97724]
[1729789373305,3.9765,2514.8,2514.3,3.97724]
[1729789373644,3.97662,2514.7,2514.3,3.97724]
[1729789373845,4.72688,2514.9,2514.4,3.97698]
[1729789374030,3.97649,2514.8,2514.4,3.97698]
[1729789376481,3.97649,2514.8,2514.3,8.827285]
[1729789376991,7.95305,2514.8,2514.3,8.827305]
[1729789377333,3.97649,2514.8,2514.3,8.827305]
[1729789377535,7.95302,2514.8,2514.3,8.827305]
[1729789377756,3.97649,2514.8,2514.4,3.977]
[1729789378073,7.95305,2514.8,2514.3,4.850185]
[1729789378372,3.97661,2514.7,2514.3,3.97718]
[1729789379242,3.97648,2514.8,2514.4,3.97705]
[1729789379572,3.97648,2514.8,2514.4,3.97699]
[1729789379733,3.97648,2514.8,2514.2,0.7755]
[1729789379935,3.97661,2514.7,2514.3,3.97723]
[1729789380259,0.7505,2514.9,2514.3,3.97723]
[1729789380430,3.97645,2514.8,2514.4,3.97707]
[1729789380633,3.97645,2514.8,2514.3,3.97723]
[1729789380634,3.97672,2514.7,2514.3,3.97723]
[1729789381044,3.97688,2514.6,2514.2,0.7755]
[1729789381232,3.97703,2514.5,2514.2,0.7755]
[1729789381760,3.97714,2514.4,2514.0,4.7937]
[1729789382371,3.97714,2514.4,2514.0,0.816]
[1729789382372,3.97727,2514.3,2514.0,0.816]
[1729789382570,3.97727,2514.3,2513.9,3.9778]
[1729789382768,3.97741,2514.2,2513.8,0.7504]
[1729789382934,3.97773,2514.0,2513.8,0.7504]
[1729789383132,3.97773,2514.0,2513.6,3.97828]
[1729789383370,3.97822,2513.7,2513.3,4.73982]
[1729789383577,3.978,2513.9,2513.3,4.73969]
[1729789383758,3.97816,2513.8,2513.3,4.73982]
[1729789384069,4.79307,2513.7,2513.2,3.97898]
[1729789384281,8.77139,2513.7,2513.2,3.97898]
[1729789384442,3.97838,2513.6,2513.1,3.97905]
[1729789384634,3.97838,2513.6,2513.1,7.95811]
[1729789384839,4.79307,2513.7,2513.2,3.9789]
[1729789385402,4.79307,2513.7,2513.0,4.0343818]
[1729789385403,1.691905,2513.7,2513.0,8.0135918]
[1729789385562,1.691905,2513.7,2513.0,3.97921]
[1729789385752,1.691905,2513.7,2512.9,4.73771]
[1729789385948,3.97876,2513.4,2512.9,4.73771]
[1729789386154,3.97893,2513.3,2512.8,0.1244128]
[1729789386337,3.97908,2513.2,2512.8,0.1244128]
[1729789386740,4.78739,2513.0,2512.8,0.1244128]
[1729789387286,3.97946,2512.9,2512.8,0.1244128]
[1729789388745,8.11985272,2513.0,2512.8,0.1244128]
[1729789389073,5.18937427,2512.9,2512.8,0.1244128]
[1729789389689,3.97946,2512.9,2512.8,0.1244128]
[1729789389988,3.97946,2512.9,2512.8,0.0744128]
[1729789397165,4.78536,2512.9,2512.8,0.0744128]
[1729789397510,3.0,2512.8,2511.6,1.62955802]
[1729789397673,3.98103,2512.0,2511.6,0.7975]
[1729789398001,3.98128,2511.8,2511.3,0.7567]
[1729789398185,3.9816,2511.6,2511.1,0.7567]
[1729789398558,3.9816,2511.6,2510.7,0.83205802]
[1729789398559,3.98194,2511.4,2510.7,0.83205802]
[1729789398804,3.98227,2511.2,2510.7,0.813]
[1729789399118,4.10092272,2511.4,2510.7,0.813]
[1729789399262,4.10092272,2511.4,2510.5,7.96637]
[1729789399263,3.982,2511.3,2510.4,0.813]
[1729789399459,3.98241,2511.1,2510.4,0.813]
[1729789399666,0.7685,2511.4,2510.9,0.7806]
[1729789399899,4.75041,2511.4,2510.9,0.7806]
[1729789400203,3.98212,2511.3,2510.9,0.7806]
[1729789400415,3.98191,2511.4,2510.9,0.7806]
[1729789400560,4.777912,2511.6,2510.9,0.7806]
[1729789400561,3.98168,2511.5,2510.9,0.7806]
[1729789400761,1.560292,2511.6,2511.0,0.07964714]
[1729789401061,0.796292,2511.6,2511.0,4.06201714]
[1729789401261,0.796292,2511.6,2511.1,3.98223]
[1729789402294,0.764,2511.8,2511.3,0.8233]
[1729789402295,3.98126,2511.8,2511.3,0.8233]
[1729789403503,3.98112,2511.9,2511.3,4.80526]
[1729789403807,4.77733,2512.3,2511.4,0.0796312]
[1729789403971,3.9805,2512.3,2511.7,0.7992]
[1729789404287,3.98066,2512.2,2511.7,0.7992]
[1729789404367,50.0,2512.0,2511.7,0.7992]
[1729789404651,53.9809,2512.0,2511.7,0.7992]
[1729789404789,50.0,2512.0,2511.7,0.7992]
[1729789405275,53.98091,2512.0,2511.7,0.7992]
[1729789405694,50.8133,2512.0,2511.6,4.06108982]
[1729789405881,53.98098,2512.0,2511.4,1.3788]
[1729789406199,50.0,2512.0,2511.7,4.81006]
[1729789406966,50.0,2512.0,2511.7,4.81014]
[1729789407985,50.0,2512.0,2511.7,4.81007]
[1729789408207,50.0,2512.0,2511.7,6.0695715]
[1729789408363,50.0,2512.0,2511.7,2.0883015]
[1729789408566,50.0,2512.0,2511.7,0.8288]
[1729789408986,53.98089,2512.0,2511.7,0.8288]
[1729789409582,50.0,2512.0,2511.7,0.8288]
[1729789409811,50.0,2512.0,2511.7,4.81014]
[1729789409974,50.0,2512.0,2511.7,0.8288]
[1729789411175,50.0,2512.0,2511.7,4.81003]
[1729789411499,50.0,2512.0,2511.7,0.8288]
[1729789412307,53.98096,2512.0,2511.7,0.8288]
[1729789412519,57.96198,2512.0,2511.7,0.8288]
[1729789412715,50.0,2512.0,2511.7,0.8288]
[1729789413309,50.0,2512.0,2511.7,4.81007]
[1729789414034,50.0,2512.0,2511.8,3.98119]
[1729789414809,0.7564,2511.4,2510.6,0.7737]
[1729789415009,3.98184,2511.4,2510.7,0.0796492]
[1729789415235,3.98184,2511.4,2510.9,0.7737]
[1729789415532,3.982,2511.3,2510.9,0.7737]
[1729789415893,3.982,2511.3,2510.9,0.85334326]
[1729789416327,3.98184,2511.4,2510.9,0.7737]
[1729789416525,3.982,2511.3,2510.9,0.7737]
[1729789417129,3.98219,2511.2,2510.9,0.7737]
[1729789417506,3.982,2511.3,2510.9,0.7737]
[1729789418020,3.98186,2511.4,2511.0,3.98247]
[1729789418935,3.98186,2511.4,2510.9,5.31956959]
[1729789420115,3.98186,2511.4,2510.9,1.33695959]
[1729789420299,7.9638,2511.4,2510.9,1.33695959]
[1729789420500,3.98186,2511.4,2510.9,1.33695959]
[1729789421103,4.73805,2511.6,2511.0,0.55]
[1729789421305,3.98165,2511.6,2511.0,0.55]
[1729789421722,3.98168,2511.5,2511.0,0.55]
[1729789421928,3.98165,2511.6,2511.0,0.55]
[1729789422110,3.98132,2511.8,2511.0,0.55]
[1729789422111,3.9813,2511.8,2511.3,4.53192]
[1729789422305,3.9813,2511.8,2511.3,4.61155023]
[1729789422546,4.73782,2511.7,2511.3,0.07963018]
[1729789422775,3.33242272,2511.6,2511.0,3.9824]
[1729789422909,3.98191,2511.4,2511.0,0.7737]
[1729789423147,3.98182,2511.5,2511.0,4.75609]
[1729789423321,3.98182,2511.5,2511.1,4.06195382]
[1729789423526,3.98182,2511.5,2511.0,4.75616]
[1729789423843,3.98182,2511.5,2511.0,4.83579783]
[1729789424438,7.96362,2511.5,2511.0,4.75616]
[1729789424644,0.872002,2511.5,2511.0,0.7737]
[1729789424940,12.12931272,2511.3,2510.8,4.76627]
[1729789425456,8.14719272,2511.3,2510.8,4.76627]
[1729789425744,8.14719272,2511.3,2510.9,3.9826]
[1729789427260,4.81477,2511.3,2510.9,3.9826]
[1729789427822,0.8327,2511.3,2511.0,3.98244]
[1729789430855,5.62938327,2511.3,2510.8,4.81478802]
[1729789431174,3.98223,2511.2,2510.7,4.81489802]
[1729789431349,3.98223,2511.2,2510.7,4.81488802]